Cogmind - Beta 16 @@@ ROGUE MODE // 2025.11.09 @ 20:28:48 Player: H3-MLN Result: Fortifying 0b10! Performance ------------- Evolutions (9) 4500 Regions Visited (22) 4400 Robots Destroyed (444) 2220 Value Destroyed (23438) 23438 Prototype IDs (104) 2080 Alien Tech Used (6) 1200 Bonus (22649) 22649 TOTAL SCORE: 60487 Bonus ------- High Alert Combat Kills 4943 Follower Combat Kills 1665 Destroyed Unchained 1000 Network Hubs Disabled 400 Met Zhirov 300 Built Enhanced Grunts 300 A7 Reached Mainframe 300 Met R17 at Cetus 500 Met R17 at Research 2000 Scanned by Researcher 500 Met MAIN.C 5000 Destroyed MAIN.C Shell 5000 Win 3000 Friendly Fire -2259 Cogmind --------- Core Integrity 245/1600 Matter 266/300 Energy 1100/1100 System Corruption 8% Temperature Cool (13) Movement Treading (87) Location By MAIN.C's Side Parts ------- > --- POWER (3) -------- Singularity Reactor > --- PROPULSION (7) --- High-density Centrium Heavy Treads Treaded Armored-Biometal Exoskeleton > --- UTILITY (11) ----- Armored Scrap Engine Coolant Network Huge Storage Unit Experimental Optical Array Experimental Targeting Computer Experimental Core Analyzer Particle Accelerator Experimental Weapon Cycler Experimental Core Shielding > --- WEAPON (4) ------- Enhanced Nova Cannon Enhanced Nova Cannon Enhanced Nova Cannon Graviton Cannon > --- INVENTORY (25) --- Improved Quantum Reactor Vortex Chain Reactor High-density Centrium Heavy Treads Experimental Cooling System Experimental Energy Well (600) Experimental Matter Compressor (500) Experimental Matter Compressor (500) Experimental Weapon Cycler Centrium Heavy Armor Plating Centrium Heavy Armor Plating Heavy Regenerative Plating Experimental Focal Shield High-powered Tractor Beam Dimensional Node Initializer Transdimensional Reconstructor Graviton Cannon Graviton Cannon Gamma Bomb Array Peak State ------------ > --- POWER ------------ Singularity Reactor > --- PROPULSION ------- High-density Centrium Heavy Treads Treaded Armored-Biometal Exoskeleton > --- UTILITY ---------- Armored Scrap Engine Coolant Network Huge Storage Unit Experimental Targeting Computer Experimental Core Analyzer Experimental Weapon Cycler Experimental Core Shielding Heavy Regenerative Plating > --- WEAPON ----------- Enhanced Nova Cannon Graviton Cannon Omega Cannon > --- INVENTORY -------- Vortex Chain Reactor High-density Centrium Heavy Treads Experimental Cooling System Coolant Network Experimental Energy Well Experimental Matter Compressor Experimental Matter Compressor Particle Accelerator Experimental Weapon Cycler Centrium Heavy Armor Plating Centrium Heavy Armor Plating Experimental Focal Shield High-powered Tractor Beam Dimensional Node Initializer Transdimensional Reconstructor Enhanced Nova Cannon Enhanced Nova Cannon Graviton Cannon Graviton Cannon Gamma Bomb Array [Rating: 253] Favorites ----------- Power Constructs Engine Constructs Power Core Meta Core Reactor Quantum Reactor Propulsion Constructs Treads Constructs Leg Enhanced Flexi-carbon Leg Wheel Wheel Hover Unit Cooled Gravmag System Flight Unit Xenon Bombardment Thruster Utility Armored Scrap Engine Device Armored Scrap Engine Storage Large Storage Unit Processor Experimental Core Analyzer Hackware Hacking Suite Protection Centrium Medium Armor Plating Artifact Phase Redirector Weapon Constructs Energy Gun Constructs Energy Cannon Enhanced Nova Cannon Ballistic Gun Helical Railgun Ballistic Cannon Constructs Launcher Gamma Bomb Array Special Weapon Molecular Deconstructor Slashing Weapon Ripper Piercing Weapon Makeshift Spear Special Melee Weapon Advanced Datajack Build | -11 -10 -10 -10 -8 -7 -7 -7 -5 -5 -5 -5 -5 -4 -4 -4 -4 -3 -3 -3 -2 -1 -1 ------- Run | Yrd Mat Min Sub Mat Fac Sto Rec Fac Ext Cet Arc Hub Fac Upp Upp Zhi Pro Res Qua Res Acc Com Slots Evolved 18 | . . . . 4 2 . . 4 . . . . 2 . . . . 2 . 2 2 . Power 2 | . . . . . . . . 1 . . . . . . . . . . . . 1 . Propulsion 5 | . . . . 2 2 . . . . . . . 1 . . . . . . . . . Utility 9 | . . . . 2 . . . 2 . . . . 1 . . . . 1 . 2 1 . Weapon 2 | . . . . . . . . 1 . . . . . . . . . 1 . . . . Parts Attached 283 | 7 3 6 16 28 21 7 4 35 8 5 4 4 4 9 4 3 2 26 14 29 11 33 Power 26 | 1 . 2 2 4 3 . . . . . . . . 1 . 1 . 3 2 3 2 2 Engine 10 | 1 . 2 2 4 1 . . . . . . . . . . . . . . . . . Core 3 | . . . . . 2 . . . . . . . . . . . . . . . . 1 Reactor 13 | . . . . . . . . . . . . . . 1 . 1 . 3 2 3 2 1 Propulsion 52 | 2 1 1 7 7 9 1 1 10 2 1 . . 1 . 1 . . 3 1 2 . 2 Treads 16 | . . 1 3 6 . . . 1 1 1 . . . . . . . 1 1 . . 1 Leg 6 | . . . . . 2 . . 4 . . . . . . . . . . . . . . Wheel 16 | 2 1 . 4 1 . . 1 5 . . . . 1 . . . . . . . . 1 Hover 1 | . . . . . . . . . 1 . . . . . . . . . . . . . Flight 13 | . . . . . 7 1 . . . . . . . . 1 . . 2 . 2 . . Utility 126 | 2 1 1 2 9 6 2 2 18 4 2 4 3 1 6 1 1 1 13 9 15 3 20 Device 60 | 1 . 1 2 2 2 2 1 4 2 . 3 1 . 4 1 . 1 5 4 8 3 13 Storage 11 | 1 1 . . 1 1 . . 2 . . . . . 1 . . . 1 2 1 . . Processor 14 | . . . . . 1 . . . . . . . 1 . . . . 4 1 3 . 4 Hackware 11 | . . . . 1 2 . . 5 . . 1 1 . . . . . 1 . . . . Protection 29 | . . . . 5 . . 1 7 2 2 . 1 . 1 . 1 . 2 1 3 . 3 Artifact 1 | . . . . . . . . . . . . . . . . . . . 1 . . . Weapon 79 | 2 1 2 5 8 3 4 1 7 2 2 . 1 2 2 2 1 1 7 2 9 6 9 Energy Gun 7 | . . . 1 3 . 1 . . . . . . . . . . . 1 . . . 1 Energy Cannon 23 | . . 1 1 1 1 . . 2 1 . . 1 . 2 . . . 2 1 6 2 2 Ballistic Gun 15 | 2 . . 2 1 1 . . 3 . 1 . . . . 1 . . 2 . 2 . . Ballistic Cannon 14 | . . 1 . 1 . 1 . 2 1 . . . 2 . . . . . . 1 1 4 Launcher 8 | . 1 . . 1 . 2 . . . . . . . . . . . . 1 . 3 . Special Weapon 4 | . . . . . . . . . . . . . . . . . 1 1 . . . 2 Impact Weapon . | . . . . . . . . . . . . . . . . . . . . . . . Slashing Weapon 5 | . . . 1 . . . 1 . . 1 . . . . 1 . . 1 . . . . Piercing Weapon 1 | . . . . 1 . . . . . . . . . . . . . . . . . . Special Melee Weapon 2 | . . . . . 1 . . . . . . . . . . 1 . . . . . . Unidentified Prototypes 51 | . . . . 2 1 5 1 3 1 3 . . . 1 . 3 1 11 4 3 1 11 Corrupted Parts 6 | . . . . . . . . 1 . . . . . . . . . . 3 . . 2 System Corruption 21 | . . . . . . . . 4 . . . . . . . . . . 11 . . 6 Parts Lost 72 | . . 4 4 2 2 3 . 12 1 1 . 5 1 . . . 5 . 3 16 4 9 Power 15 | . . 1 . . 2 . . 3 . . . 2 . . . . 1 . . 3 . 3 Propulsion 13 | . . 1 3 1 . 3 . 2 . 1 . . . . . . . . . . 1 1 Utility 28 | . . . 1 1 . . . 3 1 . . 2 . . . . 3 . 2 9 3 3 Weapon 16 | . . 2 . . . . . 4 . . . 1 1 . . . 1 . 1 4 . 2 Highest Loss Streak 5 | . . 3 1 1 2 2 . 5 1 1 . 2 1 . . . 3 . 3 4 4 4 To Critical Strikes 4 | . . . . . . . . 1 . 1 . . . . . . . . 1 1 . . Average Backups 15 | 3 7 9 12 14 13 12 9 12 13 13 9 14 12 17 18 18 18 17 18 19 19 20 Power . | . 1 . . . . . . . . . . . . . . . . . . . . . Propulsion 1 | 1 3 4 3 2 4 . . . . . . . . 1 1 . 1 1 . . . . Utility 8 | . . . . 3 5 5 5 8 11 11 8 12 10 13 14 14 13 11 10 9 7 8 Weapon 3 | . 2 4 7 6 1 4 2 2 2 1 . 1 . 1 1 2 2 1 3 4 8 8 Tool/Special . | . . . . . . . . . . . . . . . . . . . . . . . Unused Backups 84 | . . . 3 12 . 2 3 13 1 7 1 2 . 2 . 2 2 8 7 2 3 14 Power 7 | . . . . 1 . 1 . . . . . . . . . . . . 2 1 . 2 Propulsion 17 | . . . 1 2 . . . 3 . 1 1 . . 1 . 1 1 3 1 1 . 1 Utility 18 | . . . . 1 . . . . . 3 . 2 . . . 1 1 4 2 . . 4 Weapon 35 | . . . 2 6 . 1 3 9 1 3 . . . 1 . . . 1 1 . 2 5 Tool/Special 7 | . . . . 2 . . . 1 . . . . . . . . . . 1 . 1 2 Average Slot Usage (%) 74 | . 100 99 99 98 89 80 68 68 78 67 64 62 55 56 63 67 61 62 67 67 75 54 Engine 3 | . 14 14 14 8 3 . . . . . . . . . . . . 2 . . . . Core 2 | . . . . . 2 6 6 5 10 11 8 3 . . . . . . . . . . Reactor 3 | . . . . . . . . 2 . . 2 4 5 7 10 9 6 3 8 7 12 4 Treads 7 | . . 10 14 31 20 . . 2 4 4 2 5 . . . 1 5 5 4 2 . 3 Leg 1 | . . . . . 1 . . 7 15 5 . . 5 . . . . . . . . . Wheel 3 | . 28 17 13 4 . . . 5 . . . . 3 . . . . . . . . . Flight 2 | . . . . . 12 35 25 1 . . . . . . 4 5 5 2 3 4 7 1 Device 12 | . 14 13 13 9 6 6 3 6 11 11 12 5 7 10 14 10 9 11 13 16 27 16 Storage 6 | . 14 14 14 9 6 6 6 5 5 5 3 5 5 5 5 5 5 4 4 4 4 5 Processor 3 | . . . . . 1 6 6 . . . . . 4 5 5 5 5 10 11 8 8 7 Hackware 4 | . . . . 7 9 12 8 10 11 11 11 13 5 5 5 5 . 1 . . . . Protection 3 | . . . . 7 4 . 2 4 4 5 5 5 7 4 . 4 8 2 1 4 . 2 Energy Gun 1 | . . . 3 8 2 . . . . 2 . . . . . . . . . 2 . . Energy Cannon 4 | . . 8 6 . 4 . . 3 5 5 5 4 . 6 5 5 3 1 3 7 4 3 Ballistic Gun 4 | . 28 9 12 2 2 . . 3 2 1 5 5 5 . 1 5 5 4 7 1 5 . Ballistic Cannon 2 | . . 10 2 3 . . . 2 4 . . . 4 4 4 . . 2 4 . 3 5 Peak Build Rating 253 | 9 10 10 17 35 70 70 76 115 119 129 135 123 117 112 124 132 139 164 199 212 226 253 Average Rating 106 | 5 9 9 13 29 44 57 59 88 114 119 124 116 106 109 114 125 125 145 175 193 219 216 On Entrance 94 | . 9 10 10 14 33 70 57 76 104 118 124 122 100 112 111 118 132 118 164 190 199 192 Avg Prop Armor Cover (%) 6 | . . 2 11 20 4 4 2 3 6 9 . . 14 16 1 1 1 2 . 1 . 2 Naked Turns . | . . . . . . . . . . . . . . . . . . . . . . . Heaviest Build 208 | 14 29 32 37 56 49 32 35 70 79 74 67 67 74 93 104 100 100 102 172 180 204 208 Greatest Support 294 | 32 32 32 40 84 82 32 36 89 105 105 97 142 142 142 142 224 224 224 246 263 256 294 Greatest Overweight (x) 7 | . . 1 3 5 . 1 . 3 1 1 . . 7 6 . . . . 1 . . 1 Average Overweight (x) . | . . . 1 1 . . . . . . . . 4 . . . . . . . . . Largest Inventory Capacity 25 | 8 15 15 15 15 15 15 15 15 15 15 15 15 15 20 20 20 20 20 25 25 25 25 Average Capacity 17 | 7 13 15 15 15 13 12 10 13 15 15 11 15 15 18 20 20 20 20 21 25 25 25 Most Carried 25 | 5 11 12 15 15 15 15 10 15 15 15 15 15 15 20 20 20 20 20 25 25 25 25 Average Carried 16 | 3 7 9 13 14 13 12 9 13 14 14 10 14 12 18 19 19 19 19 21 24 24 23 Final Capacity 25 | 8 15 15 15 15 10 10 15 15 15 15 15 15 15 20 20 20 20 20 25 25 25 25 Final Carried 25 | 5 11 9 14 15 10 10 9 15 15 13 15 13 15 20 20 20 20 20 24 24 25 23 Scrap Engine Consumption 233 | . . . . . . . 12 57 26 16 11 10 . 8 6 3 1 27 15 17 5 19 Constructs Created 14 | . . . . . . . 2 5 . . . 1 . . . . . 1 1 2 . 2 Constructs Modified 78 | . . . . . . . 1 21 8 10 7 1 . 6 1 1 . 5 4 4 1 8 Class Distribution -------------------- 22% | Mutant 18% | Construct 11% | Scavenger-Construct 11% | Scavenger-Mutant 8% | Scavenger-Gunner 5% | Commander-Construct 3% | Hacker-Tank 3% | Hacker-Mutant Dominant Class ---------------- Mutant | -10/Materials Scavenger-Mutant | -10/Mines Mutant | -10/Subcaves Mutant | -8/Materials Mutant | -7/Factory Hacker-Sprinter | -7/Storage Sprinter | -7/Recycling Mutant | -5/Factory Hacker-Mutant | -5/Extension Commander-Mutant | -5/Cetus Commander-Construct | -5/Archives Hacker-Construct | -5/Hub_04(d) Construct | -4/Factory Construct | -4/Upper Caves Construct | -4/Upper Caves Construct | -4/Zhirov Construct | -3/Proximity Caves Construct | -3/Research Scavenger-Construct | -3/Quarantine Scavenger-Gunner | -2/Research Scavenger-Gunner | -1/Access Scavenger-Gunner | -1/Command Resources | -11 -10 -10 -10 -8 -7 -7 -7 -5 -5 -5 -5 -5 -4 -4 -4 -4 -3 -3 -3 -2 -1 -1 ----------- Run | Yrd Mat Min Sub Mat Fac Sto Rec Fac Ext Cet Arc Hub Fac Upp Upp Zhi Pro Res Qua Res Acc Com Matter Collected 14754 | 338 122 269 394 772 282 150 30 1438 342 182 97 177 24 309 60 112 259 1400 1286 1506 991 4214 Remotely 2519 | . . . . . . . . . . . . . . . . . . . . . . 2519 Salvage Created 24447 | 126 220 378 490 1961 314 44 114 2240 1384 381 485 746 95 596 81 112 259 872 5001 3337 3750 1461 Parts 1059 | 7 16 13 28 122 21 3 9 103 50 10 28 31 3 15 2 3 14 36 204 160 117 64 Haulers Intercepted 19 | . 1 . . 6 . . . 3 . . . 2 . 1 . . . 2 1 1 2 . Recyclers Shooed 17 | 1 1 . . . . . . 5 . . . . . . . . . 1 . 8 . 1 Parts Field Recycled . | . . . . . . . . . . . . . . . . . . . . . . . Retrieved Matter . | . . . . . . . . . . . . . . . . . . . . . . . Parts Self-Destructed 34 | . . . 16 . . . . . . . . . . 5 . 2 11 . . . . . Prevented 12 | . . . . . . . . . . . . . . 9 1 . 2 . . . . . Parts Restored . | . . . . . . . . . . . . . . . . . . . . . . . Kills | -11 -10 -10 -10 -8 -7 -7 -7 -5 -5 -5 -5 -5 -4 -4 -4 -4 -3 -3 -3 -2 -1 -1 ------- Run | Yrd Mat Min Sub Mat Fac Sto Rec Fac Ext Cet Arc Hub Fac Upp Upp Zhi Pro Res Qua Res Acc Com Combat Hostiles Destroyed 296 | . 5 10 9 41 4 4 1 26 21 4 2 11 2 4 1 . 6 4 51 33 35 22 Melee 10 | . . . 3 . 2 . 1 3 . . . . . . . . . . . 1 . . Guns 81 | . 2 . 1 25 2 . . 9 4 1 1 2 2 . . . 4 . 21 6 1 . Cannons 101 | . . 7 3 7 . . . 7 16 2 1 1 . 3 1 . 1 . 18 11 7 16 AOE 50 | . 3 3 2 9 . 4 . 3 . . . 8 . . . . . . . 3 13 2 Classes Destroyed 28 | 3 4 . 4 4 . . . 2 1 1 . 1 . . . . . 3 2 2 . 1 Worker 28 | 1 . . . 4 2 . . 3 . . . 4 . . . . . . 5 2 5 2 Builder 23 | . . . . 3 . . . 3 . . . . . . . . . 3 8 5 1 . Tunneler 7 | 2 . . . 1 . . . 1 . . . 2 . . . . . . . 1 . . Hauler 19 | . 1 . . 6 . . . 3 . . . 2 . 1 . . . 2 1 1 2 . Recycler 21 | 1 1 2 . 2 . . . 3 . . . . . . . . . 2 3 4 . 3 Mechanic 4 | . . . . 1 1 . . . . . . . . . . . . . 1 . 1 . Operator 18 | . . . . 2 1 . . 1 . . 9 2 1 . . . . . . . 2 . Drone 1 | . . . . . . . . . . . . . . . . . . . . . . 1 Watcher 14 | . 1 . . 2 . . . 1 2 . . 1 . . . . . . 3 2 2 . Swarmer 41 | . 3 6 . 12 . 4 . 4 2 . . . . . . . 5 . 2 3 . . Saboteur 1 | . . . . . . . . . . . . . . . . . . . . 1 . . Grunt 113 | . 2 4 . 19 4 . . 9 8 . . 9 2 4 . . . . 23 7 18 4 Brawler 4 | . . . . . . . . . . . . . . . . . . . 2 1 1 . Duelist 4 | . . . . 1 . . . . . . . . . . . . . . 1 . 2 . Protector 1 | . . . . . . . . . . . . . . . . . . . . 1 . . Researcher 10 | . . . . . . . . . . . . . . . . . . . 10 . . . Sentry 40 | . . . 1 9 . . . 3 9 . 2 1 . . 1 . 1 . 3 5 4 1 Demolisher 1 | . . . . . . . . . . . . 1 . . . . . . . . . . Hunter 24 | . . . . . . . . 4 . . . . . . . . . 2 6 5 7 . Programmer 32 | . . . . . . . . 6 . . . . . . . . . . 13 7 3 3 Q-Series 3 | . . . . . . . . . . . . . . . . . . . 1 2 . . Behemoth 2 | . . . . . . . . . 2 . . . . . . . . . . . . . Cetus Guard 4 | . . . . . . . . . . 4 . . . . . . . . . . . . Enhanced Q-Series 12 | . . . . . . . . . . . . . . . . . . . . . . 12 Striker 1 | . . . . . . . . . . . . . . . . . . 1 . . . . Executioner 2 | . . . . . . . . . . . . . . . . . . 1 . . . 1 Artisan 2 | . . . 2 . . . . . . . . . . . . . . . . . . . Cobbler 1 | . . . 1 . . . . . . . . . . . . . . . . . . . Subdweller 9 | . . . 8 . . . 1 . . . . . . . . . . . . . . . Savage 1 | . . . . . . . . . . 1 . . . . . . . . . . . . Butcher 1 | . . . . . . . . . . 1 . . . . . . . . . . . . Revision 1 | . . . . . . . . . . . . . . . . . . 1 . . . . Best Kill Streak 13 | 3 4 3 2 6 2 4 1 8 7 2 3 11 3 5 1 . 5 4 13 12 10 7 Combat Bots Only 9 | . 3 3 2 5 2 4 1 4 7 2 2 8 2 4 1 . 5 2 7 9 6 4 Max Kills in Single Turn 5 | 1 4 2 1 3 1 4 1 5 2 1 1 4 1 1 1 . 1 1 3 5 5 2 Gunslinging 1 | . . . . . . . . . . . . . . . . . . . 1 . . . Exploded 4 | . 3 2 1 2 . 4 . 3 . . . 3 . . . . . . . 3 4 2 Melee 1 | . . . 1 . 1 . 1 1 . . . . . . . . . . . 1 . . Uniques/NPCs Destroyed 3 | . . . . . . . . . . . . . . . . . . 1 . 1 . 1 Revision 17++ (-3/Research) DW-4LL (-2/Research) MAIN.C Shell (-1/Command) Combat | -11 -10 -10 -10 -8 -7 -7 -7 -5 -5 -5 -5 -5 -4 -4 -4 -4 -3 -3 -3 -2 -1 -1 -------- Run | Yrd Mat Min Sub Mat Fac Sto Rec Fac Ext Cet Arc Hub Fac Upp Upp Zhi Pro Res Qua Res Acc Com Hostile Shots Fired 2342 | . 24 69 33 123 54 109 1 307 102 39 3 78 28 25 8 . 109 26 308 416 176 304 Missed 768 | . 5 24 11 31 15 58 . 79 36 11 2 14 12 10 4 . 29 8 91 170 72 86 Hits 1574 | . 19 45 22 92 39 51 1 228 66 28 1 64 16 15 4 . 80 18 217 246 104 218 Melee 10 | . . . . . . . . . . . . . . . . . . . 3 6 1 . Projectile 1564 | . 19 45 22 92 39 51 1 228 66 28 1 64 16 15 4 . 80 18 214 240 103 218 AOE 14 | . . . . . . . . 1 . . . 5 . . . . . . . . . 8 Critical Strikes 79 | . . . . 4 . 1 . 10 1 6 . 8 . . . . . . 16 18 9 6 Part Disruptions 8 | . . . . . . . . 2 . . . . . . . . . . . . 1 5 Damage Taken 33915 | . 199 553 643 1371 631 491 22 4551 1420 587 23 2230 362 294 103 . 1691 498 3060 6015 1692 7479 Core 4143 | . 42 43 135 134 16 125 . 529 23 81 . 278 17 43 25 . 70 64 556 607 311 1044 Absorbed by Shields 2684 | . . . . . . . . . . 138 . . . . . . . . 1112 303 946 185 Reduced by Siege Mode 18 | . . . . . . . . . . . . . . . . . . . . . . 18 Redirected to Core 160 | . . . . . . . . . . . . . . . . . . . 155 5 . . Redirected to Shielding 4 | . . . . . . . . . . . . . . . . . . . . . . 4 Ignored by Resistances 848 | . . . . . . . . 59 . . . . . . . . . . 502 102 28 157 Regen/Repaired (Parts) 8113 | . . . . . . . . 805 486 149 23 989 . 220 28 161 . 848 1248 658 395 2103 Core Remaining (%) 50 | 100 . . 12 75 . . 79 . . . . 8 . . . . 86 . 38 39 . 15 Volleys Fired 1227 | 17 19 41 55 123 16 1 . 157 55 14 64 45 20 28 15 6 32 31 170 129 58 131 Largest 4 | 2 2 2 2 2 2 1 . 2 3 3 2 2 1 2 3 1 2 2 4 4 4 4 Hottest 448 | 40 40 90 105 135 93 36 . 166 287 211 172 172 52 158 246 53 158 211 448 404 244 418 Shots Fired 2080 | 34 37 79 88 225 27 1 . 227 118 34 70 58 20 34 21 6 38 38 315 205 114 291 Gun 904 | 34 36 29 67 167 11 . . 106 26 14 62 29 18 . . 6 31 1 155 82 30 . Cannon 1054 | . . 47 18 49 16 . . 120 92 20 8 24 . 34 21 . 6 36 156 95 50 262 Launcher 86 | . 1 3 3 9 . 1 . 1 . . . 5 2 . . . . . 4 19 34 4 Special 36 | . . . . . . . . . . . . . . . . . 1 1 . 9 . 25 Kinetic 1077 | 34 36 57 62 96 11 . . 163 44 20 62 29 18 16 3 6 31 1 155 37 47 149 Thermal 599 | . . 19 23 120 16 . . 26 51 14 8 24 . 11 15 . 3 6 6 117 28 112 Explosive 25 | . 1 3 3 9 . 1 . 1 . . . 5 2 . . . . . . . . . Electromagnetic 343 | . . . . . . . . 37 23 . . . . 7 3 . 3 30 154 42 39 5 Robot Hit Streak 29 | 15 8 6 13 9 3 . . 14 11 9 11 6 6 19 5 11 15 12 18 10 9 29 Robot Miss Streak 10 | 2 2 10 3 4 4 . . 5 5 2 4 5 4 1 1 . 5 2 4 6 3 3 Penetration Max 2 | . . . . . . . . 1 1 1 1 . . 1 . . . . 2 1 . . Secondary Targets 9 | . 1 . . 1 . . . 2 . . . . . . . . . . 5 . . . Max Gunslinging Chain 1 | . 1 . . 1 . . . 1 . . . . . . . . . . 1 . . . Shots Hit Robots 1376 | 26 25 38 45 140 20 2 2 192 78 25 48 33 12 27 6 9 22 32 197 120 53 224 Core Hits 957 | 7 12 16 12 86 11 5 2 104 56 19 23 72 11 13 3 3 11 7 129 121 154 80 Critical Kills 22 | . . . . . . . . 2 2 1 5 . 1 . . . . . 6 3 . 2 Critical Parts Destroyed 30 | . . . . 1 . . . 5 1 . 3 1 2 3 . . . . 11 3 . . Critical Strikes 80 | . . . . 7 2 . . 12 4 1 8 1 3 3 . . . . 19 7 1 12 Burn 1 | . . . . 1 . . . . . . . . . . . . . . . . . . Meltdown 4 | . . . . . . . . . . 1 . . . . . . . . . 1 . 2 Destroy 50 | . . . . 1 . . . 7 3 . 8 1 3 3 . . . . 18 6 . . Blast 13 | . . . . 2 . . . . 1 . . . . . . . . . . . . 10 Corrupt 6 | . . . . . . . . 4 . . . . . . . . . . 1 . 1 . Impale 6 | . . . . 3 2 . . 1 . . . . . . . . . . . . . . Melee Attacks 116 | . . . 17 9 15 11 13 36 . . . 3 . . 2 3 . 7 . . . . Impact . | . . . . . . . . . . . . . . . . . . . . . . . Slashing 30 | . . . 17 . . . 1 1 . . . 3 . . 2 . . 6 . . . . Piercing 81 | . . . . 9 14 11 12 35 . . . . . . . . . . . . . . Sneak Attacks 26 | . . . 5 7 5 . . 2 . . . . . . . 3 . 4 . . . . Combat Hostiles 1 | . . . 1 . . . . . . . . . . . . . . . . . . . Follow-up Attacks 1 | . . . . . . . . 1 . . . . . . . . . . . . . . Damage Inflicted 61788 | 271 432 851 1373 4305 639 321 105 4555 3428 972 1247 2796 512 841 180 143 652 1583 11553 6170 6039 12820 Guns 14473 | 271 267 157 208 2012 80 . . 1465 926 384 1038 560 263 . . 143 443 . 4481 1500 275 . Cannons 33083 | . . 492 359 687 214 . . 2311 2499 588 209 495 . 841 180 . 209 1159 6398 3091 1160 12191 Explosions 11450 | . 165 202 150 1124 . 267 . 232 . . . 1698 249 . . . . . 630 1534 4570 629 Melee 2656 | . . . 656 482 345 54 105 547 . . . 43 . . . . . 424 . . . . Ramming 126 | . . . . . . . . . 3 . . . . . . . . . 44 45 34 . Kinetic 24069 | 271 267 439 168 1214 80 . . 2561 1397 553 1038 560 263 358 42 143 443 . 4481 664 744 8383 Thermal 15858 | . . 210 399 1485 214 . . 579 1648 419 209 495 . 287 72 . 109 181 1800 3241 747 3763 Explosive 4087 | . 165 202 150 1124 . 267 . 232 . . . 1698 249 . . . . . . . . . Electromagnetic 14992 | . . . . . . . . 636 380 . . . . 196 66 . 100 978 5228 2220 4514 674 Impact . | . . . . . . . . . . . . . . . . . . . . . . . Slashing 1123 | . . . 656 . . . . . . . . 43 . . . . . 424 . . . . Piercing 1533 | . . . . 482 345 54 105 547 . . . . . . . . . . . . . . Highest Corruption 25 | . . . . . . . . 11 14 14 14 15 . . . . . . 25 15 4 23 Average Corruption 10 | . . . . . . . . 7 12 14 8 11 . . . . . . 9 12 1 9 Corruption Purged 44 | . . . . . . . . 7 . . 14 . . . . . . . . . . 23 Corruption Blocked 15 | . . . . . . . . . . . . . . . . . . . . 15 . . Effects 284 | . . . . . . . . 37 45 29 13 3 . . . . . . 60 54 5 38 Message Errors 61 | . . . . . . . . 15 8 4 2 . . . . . . . 14 10 1 7 Matter Fused 66 | . . . . . . . . 10 6 11 3 . . . . . . . 13 12 3 8 Heat Flow Errors 36 | . . . . . . . . 7 4 5 2 2 . . . . . . 5 7 . 4 Energy Discharges 33 | . . . . . . . . 5 6 4 1 . . . . . . . 8 4 . 5 Parts Rejected 10 | . . . . . . . . . 1 1 . 1 . . . . . . 1 4 . 2 Parts Fused 6 | . . . . . . . . . 2 1 . . . . . . . . 1 1 . 1 Data Loss (minor) 27 | . . . . . . . . . 9 . 2 . . . . . . . 6 6 . 4 Data Loss (major) 11 | . . . . . . . . . 3 1 1 . . . . . . . 2 2 1 1 Misfires 8 | . . . . . . . . . 3 1 . . . . . . . . 3 1 . . Alerts 6 | . . . . . . . . . 2 . . . . . . . . . 1 1 . 2 Misdirections 4 | . . . . . . . . . . . . . . . . . . . . 3 . 1 Weapon Failures 16 | . . . . . . . . . 1 1 2 . . . . . . . 6 3 . 3 Overload Shots . | . . . . . . . . . . . . . . . . . . . . . . . Overflow Damage 2910 | . 18 23 85 166 20 . . 155 59 . . 37 8 32 . . . 261 1152 380 46 468 Projectiles 2263 | . . 14 . 34 . . . 65 59 . . 34 . 32 . . . 7 1152 379 19 468 Explosions 82 | . 18 9 . 17 . . . . . . . 3 8 . . . . . . . 27 . Melee 565 | . . . 85 115 20 . . 90 . . . . . . . . . 254 . 1 . . Knockbacks 87 | . . 6 . 3 . . . 19 4 . . . . 2 . . . . 1 1 2 49 Impact 2 | . . . . . . . . . . . . . . . . . . . 1 1 . . Kinetic 82 | . . 5 . 3 . . . 18 4 . . . . 2 . . . . . . 2 48 Secondary 3 | . . 1 . . . . . 1 . . . . . . . . . . . . . 1 Self-Inflicted Damage 549 | . . 69 5 73 . 21 . . . . . 71 42 . . . . . 45 36 187 . Shots 37 | . . 3 1 4 . 1 . . . . . 3 2 . . . . . 4 4 15 . Rammed 7 | . . . . . . . . . . . . . . . . . . . 2 3 2 . Targets Rammed 10 | . . . . . . . . . 1 . . . . . . . . . 3 4 2 . Kicked 1 | . . . . . . . . . 1 . . . . . . . . . . . . . Crushed 2 | . . . . . . . . . . . . . . . . . . . 1 1 . . Highest Temperature 1403 | . 18 250 62 306 291 37 . 320 218 226 211 308 17 237 348 24 314 288 237 875 320 1403 Average Temperature 107 | . 7 83 22 64 128 10 . 81 55 46 127 113 9 67 117 13 179 100 76 134 89 227 Received Heat Transfer 6765 | . 96 168 156 711 351 174 6 681 267 53 . 195 66 69 18 . 48 63 490 1808 257 1088 Effects 56 | . . 1 . . 2 . . 3 1 . . . . 1 . . 1 . . 19 2 26 Shutdowns 7 | . . . . . . . . . . . . . . . . . . . . 3 . 4 Energy Bleed 14 | . . 1 . . . . . 2 . . . . . 1 . . . . . 2 1 7 Interference 13 | . . . . . 2 . . 1 1 . . . . . . . . . . 8 . 1 Matter Decay 7 | . . . . . . . . . . . . . . . . . 1 . . 2 1 3 Short Circuit 7 | . . . . . . . . . . . . . . . . . . . . 2 . 5 Damage (minor) 3 | . . . . . . . . . . . . . . . . . . . . 1 . 2 Damage (major) 2 | . . . . . . . . . . . . . . . . . . . . . . 2 Damage (core) 3 | . . . . . . . . . . . . . . . . . . . . 1 . 2 Siege Activations 4 | . . . . . . . . . . . . . . . . . . . . . . 4 Total Turns 48 | . . . . . . . . . . . . . . . . . . . . . . 48 Longest Duration 17 | . . . . . . . . . . . . . . . . . . . . . . 17 Martial Activations . | . . . . . . . . . . . . . . . . . . . . . . . Shielding Activations . | . . . . . . . . . . . . . . . . . . . . . . . Robots Disrupted 2 | . . . . . . . . . . . . . . . . . . . . . 2 . Combat Hostiles 2 | . . . . . . . . . . . . . . . . . . . . . 2 . Robots Corrupted 55 | . . . . . . . . 5 1 . . . . 1 . . 1 5 15 10 16 1 Combat Hostiles 47 | . . . . . . . . 3 1 . . . . 1 . . 1 4 12 10 14 1 Parts Fried 143 | . . . . . . . . 5 1 1 . . . 2 . . 3 11 51 17 49 3 Impact Corruptions 1 | . . . . . . . . . . . . . . . . . . . . 1 . . Robots Melted 5 | . . . . . . . . 1 . 1 . . . . . . . . . 1 . 2 Combat Hostiles 4 | . . . . . . . . 1 . 1 . . . . . . . . . . . 2 Parts Melted 16 | . . 1 1 4 . . . 2 1 2 . . . . . . . . . 1 1 3 Heat Transferred 12066 | . . 444 507 2633 296 . . 835 1387 351 166 407 . 296 74 . 111 157 . 888 557 2957 Parts Sabotaged 2 | . . . . . . . . . . . . . . . . . . . . 2 . . Parts Stolen . | . . . . . . . . . . . . . . . . . . . . . . . Parts Stripped . | . . . . . . . . . . . . . . . . . . . . . . . Power Chain Reactions 5 | . . . . . . . . . . . . . . . . . . . . . 5 . Alert | -11 -10 -10 -10 -8 -7 -7 -7 -5 -5 -5 -5 -5 -4 -4 -4 -4 -3 -3 -3 -2 -1 -1 ------- Run | Yrd Mat Min Sub Mat Fac Sto Rec Fac Ext Cet Arc Hub Fac Upp Upp Zhi Pro Res Qua Res Acc Com Maximum Alert Level 5 | . . . . 3 1 . . 1 3 2 1 3 2 . . . . 1 4 4 5 4 Low Security (%) 41 | 100 100 100 . 20 25 100 100 52 38 . 59 17 . . . . . 99 31 . . 63 Level 1 18 | . . . . 13 74 . . 47 52 15 40 14 25 . . . . . 9 . . . Level 2 18 | . . . . 37 . . . . 2 84 . 47 74 . . . . . 25 37 . . Level 3 13 | . . . . 27 . . . . 7 . . 20 . . . . . . 31 22 43 17 Level 4 7 | . . . . . . . . . . . . . . . . . . . 2 39 48 19 Level 5 . | . . . . . . . . . . . . . . . . . . . . . 8 . High Security . | . . . . . . . . . . . . . . . . . . . . . . . Max Security . | . . . . . . . . . . . . . . . . . . . . . . . Peak Influence 1640 | 10 96 126 . 837 364 163 129 330 770 540 308 892 504 . . . . 201 1212 1398 1640 1247 Initial 1045 | . . 29 . . 364 57 39 330 147 421 148 . 414 . . . . 196 . 681 828 1045 Average 413 | 2 32 33 . 472 252 119 101 179 226 447 161 504 429 . . . . 58 496 929 1164 862 Influence Increases 13709 | 20 136 277 20 1452 210 326 241 1256 1408 319 310 1290 150 195 35 5 250 384 2178 1435 1382 430 Destroy 0b10 Robot/C 6400 | . 100 200 20 820 80 80 . 520 740 160 80 500 40 80 20 . 120 80 1220 620 700 220 Destroy 0b10 Robot/NC 725 | 20 15 10 . 105 20 . 5 75 20 10 45 70 5 10 . 5 . 35 105 80 65 25 Destroy Leader 1186 | . 14 40 . 196 10 10 . 128 94 . . 128 10 . . . 10 24 158 156 148 60 Allied During Kill 1065 | . . . . . . . . . 423 141 125 371 . . . . . . . . . 5 Successful Hack 672 | . . . . 62 78 34 22 43 51 . . 6 7 . . . . 74 177 . 94 24 Select Force Hacks 180 | . . . . . . . 180 . . . . . . . . . . . . . . . Disable Machine 660 | . . 15 . 45 . 45 . 15 30 . 60 60 . . . . . 15 285 60 15 15 Anti-Garrison Action 150 | . . . . . . . . . . . . . . . . . . . . . 150 . Destroy Structure 916 | . 7 12 . 59 7 7 4 70 50 8 . 140 88 . . . . 6 158 144 105 51 Advance Influence 450 | . . . . . . . . 300 . . . . . . . . . 150 . . . . Partial Spotted 195 | . . . . 15 15 . 30 30 . . . . . . . . . . . 45 45 15 Lose Combat Pursuer 1110 | . . . . 150 . 150 . 75 . . . 15 . 105 15 . 120 . 75 330 60 15 Influence Decreases 12542 | 20 60 353 20 652 884 349 270 1030 954 701 682 444 640 551 35 5 181 453 966 1265 1130 897 Entered New Map 3631 | . . 47 . . 436 69 64 44 153 333 224 . 432 132 . . . 23 . 531 554 589 Time Decay 6726 | 20 60 290 20 632 278 100 206 606 436 318 418 314 198 419 35 5 151 430 632 574 386 198 Search Patrol Dispatched 100 | . . . . . . . . 100 . . . . . . . . . . . . . . Lost Part 616 | . . 16 . 20 20 30 . 120 10 10 . 50 10 . . . 30 . 30 160 40 70 Lost Ally 484 | . . . . . . 150 . 10 120 40 40 80 . . . . . . 4 . . 40 Purge Threat 985 | . . . . . 150 . . 150 235 . . . . . . . . . 300 . 150 . Squads Dispatched 100 | . . . . 5 2 1 . 15 4 . . 8 3 . . . . 9 16 21 13 3 Investigation 11 | . . . . 1 . . . 1 2 . . . . . . . . 3 1 2 1 . Extermination 22 | . . . . . 1 . . 4 . . . 1 1 . . . . . 6 5 3 1 Reinforcement 36 | . . . . 2 1 1 . 4 2 . . 5 . . . . . 6 5 7 2 1 Assault 19 | . . . . 1 . . . 2 . . . 1 1 . . . . . 3 4 6 1 Garrison 12 | . . . . 1 . . . 4 . . . 1 1 . . . . . 1 3 1 . Intercept . | . . . . . . . . . . . . . . . . . . . . . . . Searches Triggered 1 | . . . . . . . . 1 . . . . . . . . . . . . . . Unchained Authorized 1 | . . . . . . . . . . . . . . . . . . . . 1 . . Construction Impeded 7 | . . . . . . . . 1 2 . . 2 . . . . . 1 . 1 . . Haulers Reinforced 6 | . . . . . . . . 1 . . . . . . . . . 2 . 2 1 . Active Scanning Responses . | . . . . . . . . . . . . . . . . . . . . . . . Cargo Convoy Interrupts . | . . . . . . . . . . . . . . . . . . . . . . . Stealth | -11 -10 -10 -10 -8 -7 -7 -7 -5 -5 -5 -5 -5 -4 -4 -4 -4 -3 -3 -3 -2 -1 -1 --------- Run | Yrd Mat Min Sub Mat Fac Sto Rec Fac Ext Cet Arc Hub Fac Upp Upp Zhi Pro Res Qua Res Acc Com Distress Signals 37 | . . . . 6 . 2 . 1 1 2 . 3 . . . . 1 2 1 7 2 9 Communications Jammed 65 | . . . . . . . . . . . . . . . . . 1 . 14 12 38 . Distress Signals 63 | . . . . . . . . . . . . . . . . . . . 14 11 38 . Times Spotted 611 | . 7 10 8 66 10 32 1 46 43 10 31 34 3 11 2 . 15 10 80 80 56 56 Peak Tracking Total 12 | . 4 3 2 6 5 8 1 5 7 5 1 6 2 5 1 . 5 2 7 12 12 6 Tactical Retreats 42 | . . . . 6 . 7 . 3 . . . 1 . 2 1 . 4 . 4 10 3 1 ECM-based Alert Blocks 13 | . . . . . . 13 . . . . . . . . . . . . . . . . Traps | -11 -10 -10 -10 -8 -7 -7 -7 -5 -5 -5 -5 -5 -4 -4 -4 -4 -3 -3 -3 -2 -1 -1 ------- Run | Yrd Mat Min Sub Mat Fac Sto Rec Fac Ext Cet Arc Hub Fac Upp Upp Zhi Pro Res Qua Res Acc Com Traps Triggered 20 | . . . 3 1 . . . . 1 . . . . . . . . . 2 7 1 5 Indirectly 7 | . . . . . . . . . . . . . . . . . . . . 4 . 3 Trap Hack Attempts 114 | . . . . . 114 . . . . . . . . . . . . . . . . . Triggered . | . . . . . . . . . . . . . . . . . . . . . . . Disarmed . | . . . . . . . . . . . . . . . . . . . . . . . Reprogrammed 4 | . . . . . 4 . . . . . . . . . . . . . . . . . Reused 4 | . . . . . . . . . . . . . . 4 . . . . . . . . Traps Extracted 4 | . . . . . 4 . . . . . . . . . . . . . . . . . Installed 4 | . . . . . . . . . . . . . . 4 . . . . . . . . Triggered 4 | . . . . . . . . . . . . . . 4 . . . . . . . . Most Traps Carried 4 | . . . . . 4 4 4 4 4 4 4 4 4 4 . . . . . . . . Machines | -11 -10 -10 -10 -8 -7 -7 -7 -5 -5 -5 -5 -5 -4 -4 -4 -4 -3 -3 -3 -2 -1 -1 ---------- Run | Yrd Mat Min Sub Mat Fac Sto Rec Fac Ext Cet Arc Hub Fac Upp Upp Zhi Pro Res Qua Res Acc Com Machines Disabled 47 | . . 1 1 3 . 3 . 1 2 . 4 4 . . . . 1 1 19 4 2 1 Max in Single Turn 2 | . . 1 1 1 . 1 . 1 1 . 1 1 . . . . 1 1 2 1 1 . Garrison Access 9 | . . . . 1 1 1 . 2 . . . 1 . . . . . . 1 1 1 . Network Hub 2 | . . . . . . . . . . . . 2 . . . . . . . . . . Energy Cycler 1 | . . . . . . . . . 1 . . . . . . . . . . . . . Machines Repaired . | . . . . . . . . . . . . . . . . . . . . . . . Machines Dismantled . | . . . . . . . . . . . . . . . . . . . . . . . Machines Sabotaged . | . . . . . . . . . . . . . . . . . . . . . . . Overloaded Fab Kills . | . . . . . . . . . . . . . . . . . . . . . . . Hacking | -11 -10 -10 -10 -8 -7 -7 -7 -5 -5 -5 -5 -5 -4 -4 -4 -4 -3 -3 -3 -2 -1 -1 --------- Run | Yrd Mat Min Sub Mat Fac Sto Rec Fac Ext Cet Arc Hub Fac Upp Upp Zhi Pro Res Qua Res Acc Com Machines Accessed 115 | . 2 . 1 13 5 13 10 10 11 1 . 3 2 . 2 4 . 7 14 6 10 1 Terminals 69 | . 2 . . 7 3 12 3 5 11 1 . 2 2 . 1 . . 3 8 1 7 1 Fabricators 8 | . . . . . . . . 3 . . . . . . . . . 3 . 1 1 . Repair Stations 5 | . . . . 1 . . . . . . . . . . . . . . 2 1 1 . Recycling Units 10 | . . . . 2 . . 6 1 . . . . . . . . . . . 1 . . Scanalyzers 8 | . . . . 2 1 . . . . . . . . . . . . 1 3 . 1 . Garrison Access 8 | . . . . 1 1 1 . 1 . . . 1 . . . . . . 1 2 . . Total Hacks 422 | . 7 . 1 59 22 45 42 34 28 2 . 9 8 . 2 17 . 24 65 18 36 3 Successful 210 | . 1 . 1 32 10 21 31 23 14 1 . 8 3 . 2 17 . 12 21 3 9 1 Failed 211 | . 5 . . 27 12 24 11 11 14 1 . 1 5 . . . . 12 44 15 27 2 Catastrophic 34 | . . . . 3 . 1 2 1 1 . . . 1 . . . . 2 10 7 6 . Database Lockouts 1 | . 1 . . . . . . . . . . . . . . . . . . . . . Manual 134 | . 5 . . 25 8 17 20 9 9 1 . 6 1 . . . 1 2 14 7 6 3 Terminals 265 | . 7 . . 34 18 44 20 15 28 2 . 8 8 . 1 . . 10 38 3 26 3 Fabricators 29 | . . . . . . . . 12 . . . . . . . . . 9 . 6 2 . Repair Stations 23 | . . . . 4 . . . . . . . . . . . . . . 13 3 3 . Recycling Units 29 | . . . . 6 . . 17 5 . . . . . . . . . . . 1 . . Scanalyzers 40 | . . . . 14 3 . . . . . . . . . . . . 5 13 . 5 . Garrison Access 12 | . . . . 1 1 1 . 2 . . . 1 . . . . . . 1 5 . . Terminal Hacks 100 | . 1 . 1 8 3 12 11 8 11 1 . 5 3 . 2 17 . 3 7 . 7 . Record 9 | . . . . . . . 3 . . . . . . . 1 5 . . . . . . Part Schematic 19 | . 1 . . 3 . 2 5 1 3 . . . . . . 4 . . . . . . Robot Analysis 4 | . . . . . . . . . . . . . . . . 4 . . . . . . Prototype ID Bank 7 | . . . . 1 . . . . 2 . . . . . . 4 . . . . . . Open Door 13 | . . . . . . 5 . . 3 1 . . . . 1 . . . . . 3 . Level Access Points 1 | . . . . . . . . . . . . 1 . . . . . . . . . . Branch Access Points 5 | . . . . 1 . 1 . 1 . . . . . . . . . 1 . . 1 . Terminal Index 4 | . . . . . . . 1 . . . . 1 1 . . . . . 1 . . . Scanalyzer Index 1 | . . . . . . . . 1 . . . . . . . . . . . . . . Unreport Threat 7 | . . . . . 1 . . 1 2 . . . . . . . . . 2 . 1 . Locate Traps 9 | . . . . 1 . 1 . 2 1 . . 1 1 . . . . 1 1 . . . Maintenance Status 1 | . . . . . . . . . . . . . . . . . . . . . 1 . Reinforcement Status 1 | . . . . . 1 . . . . . . . . . . . . . . . . . Registered Components 4 | . . . . 1 1 . . . . . . . 1 . . . . . 1 . . . Registered Prototypes 2 | . . . . . . 1 . 1 . . . . . . . . . . . . . . Zone Layout 10 | . . . . 1 . 2 . 1 . . . 2 . . . . . 1 2 . 1 . Proto ID Catalog 1 | . . . 1 . . . . . . . . . . . . . . . . . . . Release Object 2 | . . . . . . . 2 . . . . . . . . . . . . . . . Fabricator Hacks 15 | . . . . . . . . 8 . . . . . . . . . 6 . 1 . . Network Status 2 | . . . . . . . . 1 . . . . . . . . . 1 . . . . Load Schematic 6 | . . . . . . . . 3 . . . . . . . . . 2 . 1 . . Build 7 | . . . . . . . . 4 . . . . . . . . . 3 . . . . Repair Station Hacks 5 | . . . . 1 . . . . . . . . . . . . . . 4 . . . Scan Component 3 | . . . . . . . . . . . . . . . . . . . 3 . . . Repair 1 | . . . . . . . . . . . . . . . . . . . 1 . . . Refit 1 | . . . . 1 . . . . . . . . . . . . . . . . . . Recycling Unit Hacks 15 | . . . . 3 . . 9 2 . . . . . . . . . . . 1 . . Report Inventory 9 | . . . . 2 . . 6 1 . . . . . . . . . . . . . . Retrieve Components 6 | . . . . 1 . . 3 1 . . . . . . . . . . . 1 . . Scanalyzer 19 | . . . . 10 1 . . . . . . . . . . . . 3 4 . 1 . Insert Component 9 | . . . . 4 . . . . . . . . . . . . . 2 3 . . . Analyze 7 | . . . . 6 . . . . . . . . . . . . . 1 . . . . Retrieve Study 3 | . . . . . 1 . . . . . . . . . . . . . 1 . 1 . Garrison Access Hacks 7 | . . . . 1 1 1 . 1 . . . 1 . . . . . . 1 1 . . Seal Access 7 | . . . . 1 1 1 . 1 . . . 1 . . . . . . 1 1 . . Unauthorized Hacks 49 | . . . . 9 5 8 11 4 3 . . 2 . . . . . . 5 . 1 1 Terminals 38 | . . . . 8 5 8 5 1 3 . . 2 . . . . . . 4 . 1 1 Track 3 | . . . . . . . . . . . . 1 . . . . . . 1 . . 1 Assimilate 3 | . . . . . . 1 . 1 . . . . . . . . . . 1 . . . Botnet 12 | . . . . 2 1 1 2 . 2 . . 1 . . . . . . 2 . 1 . Operators 3 | . . . . 1 1 1 . . . . . . . . . . . . . . . . Skim 17 | . . . . 5 3 5 3 . 1 . . . . . . . . . . . . . Fabricators . | . . . . . . . . . . . . . . . . . . . . . . . Repair Stations . | . . . . . . . . . . . . . . . . . . . . . . . Recycling Units 10 | . . . . 1 . . 6 3 . . . . . . . . . . . . . . Reject 1 | . . . . . . . . 1 . . . . . . . . . . . . . . Recyclers 1 | . . . . . . . . 1 . . . . . . . . . . . . . . Mask 2 | . . . . 1 . . . 1 . . . . . . . . . . . . . . Tunnel 6 | . . . . . . . 6 . . . . . . . . . . . . . . . Scanalyzers 1 | . . . . . . . . . . . . . . . . . . . 1 . . . Researchers 1 | . . . . . . . . . . . . . . . . . . . 1 . . . Garrison Access . | . . . . . . . . . . . . . . . . . . . . . . . Data Cores Recovered 4 | . . . . . . . . 1 . . . 1 . . . . . 2 . . . . Used 1 | . . . . . . . . 1 . . . . . . . . . . . . . . Hacking Detections 87 | . 2 . . 12 4 10 6 9 8 . . 2 2 . . . . 6 12 5 8 1 Full Trace Events 8 | . . . . 1 . . . 1 2 . . . . . . . . 2 . 1 1 . Feedback Events . | . . . . . . . . . . . . . . . . . . . . . . . Feedback Blocked . | . . . . . . . . . . . . . . . . . . . . . . . Robot Schematics Acquired 6 | . . . . . . . . . . . . . . . . . . . 6 . . . Robots Built . | . . . . . . . . . . . . . . . . . . . . . . . Authchips . | . . . . . . . . . . . . . . . . . . . . . . . Time . | . . . . . . . . . . . . . . . . . . . . . . . Total Robot Build Rating . | . . . . . . . . . . . . . . . . . . . . . . . Part Schematics Acquired 42 | . 1 . . 7 . 2 5 1 3 . . . . . . 4 . 1 18 . . . Parts Built 11 | . . . . . . . . 7 . . . . . . . . . 4 . . . . Authchips 2 | . . . . . . . . 2 . . . . . . . . . . . . . . Time 363 | . . . . . . . . 165 . . . . . . . . . 198 . . . . Total Part Build Rating 61 | . . . . . . . . 33 . . . . . . . . . 28 . . . . Part Studies Acquired 3 | . . . . . 1 . . . . . . . . . . . . . 1 . 1 . Parts Repaired 1 | . . . . . . . . . . . . . . . . . . . 1 . . . Time 26 | . . . . . . . . . . . . . . . . . . . 26 . . . Parts Recycled . | . . . . . . . . . . . . . . . . . . . . . . . Recycled Matter . | . . . . . . . . . . . . . . . . . . . . . . . Retrieved Matter . | . . . . . . . . . . . . . . . . . . . . . . . Retrieved Components 18 | . . . . 3 . . 3 2 . . . . . . . . . . . 10 . . Parts Scanalyzed 5 | . . . . 4 . . . . . . . . . . . . . 1 . . . . Part Schematics Acquired 5 | . . . . 4 . . . . . . . . . . . . . 1 . . . . Parts Damaged . | . . . . . . . . . . . . . . . . . . . . . . . Bothacking | -11 -10 -10 -10 -8 -7 -7 -7 -5 -5 -5 -5 -5 -4 -4 -4 -4 -3 -3 -3 -2 -1 -1 ------------ Run | Yrd Mat Min Sub Mat Fac Sto Rec Fac Ext Cet Arc Hub Fac Upp Upp Zhi Pro Res Qua Res Acc Com Used RIF Installer . | . . . . . . . . . . . . . . . . . . . . . . . Robots Hacked 5 | . . . . . 1 . . . . . . . . . . 3 . 1 . . . . Non-combat 1 | . . . . . 1 . . . . . . . . . . . . . . . . . Combat 4 | . . . . . . . . . . . . . . . . 3 . 1 . . . . Robot Hacks Applied 5 | . . . . . 1 . . . . . . . . . . 3 . 1 . . . . parse_system 4 | . . . . . . . . . . . . . . . . 3 . 1 . . . . find_chute 1 | . . . . . 1 . . . . . . . . . . . . . . . . . Relay Couplers Released 5 | . . . . . . . . 3 . . . . . . . . . . . . 2 . Machine Destruction 2 | . . . . . . . . . . . . . . . . . . . . . 2 . Programmers 3 | . . . . . . . . 3 . . . . . . . . . . . . . . Fabnet Peak Effective % . | . . . . . . . . . . . . . . . . . . . . . . . Robots Rewired 12 | . . . . . . . . . 12 . . . . . . . . . . . . . Allies Hacked . | . . . . . . . . . . . . . . . . . . . . . . . Hacks Repelled . | . . . . . . . . . . . . . . . . . . . . . . . Allies | -11 -10 -10 -10 -8 -7 -7 -7 -5 -5 -5 -5 -5 -4 -4 -4 -4 -3 -3 -3 -2 -1 -1 -------- Run | Yrd Mat Min Sub Mat Fac Sto Rec Fac Ext Cet Arc Hub Fac Upp Upp Zhi Pro Res Qua Res Acc Com Total Allies 28 | . . 3 . . . 1 . 1 17 5 . . . . . . . . 1 . . . Largest Group 11 | . . 3 3 . . . . 1 11 11 8 5 . . . . . . 1 . . . Highest-Rated Group 764 | . . 40 40 . . . . 24 414 764 622 398 . . . . . . 26 . . . Highest-Rated Ally 159 | . . 16 16 . . . . 24 159 159 159 96 . . . . . . 26 . . . Total Orders 20 | . . . . . . 2 . . . 2 2 2 . . 9 . . . . . . 3 STAY 5 | . . . . . . . . . . 1 1 2 . . . . . . . . . 1 FOLLOW 2 | . . . . . . . . . . 1 1 . . . . . . . . . . . EXPLORE 11 | . . . . . . 2 . . . . . . . . 9 . . . . . . . RETURN 2 | . . . . . . . . . . . . . . . . . . . . . . 2 Ally Attacks 271 | . . . 22 . . . . . 82 65 15 67 . . . . . . . . . 20 Total Damage 8256 | . . . 46 . . . . . 2159 1973 591 3079 . . . . . . . . . 408 Kills 48 | . . . 1 . . . . . 18 7 2 18 . . . . . . . . . 2 Allies Corrupted 2 | . . . . . . . . . 1 . . 1 . . . . . . . . . . Allies Melted 10 | . . . . . . . . . 1 . . . . . . . . . . . . 9 Intel | -11 -10 -10 -10 -8 -7 -7 -7 -5 -5 -5 -5 -5 -4 -4 -4 -4 -3 -3 -3 -2 -1 -1 ------- Run | Yrd Mat Min Sub Mat Fac Sto Rec Fac Ext Cet Arc Hub Fac Upp Upp Zhi Pro Res Qua Res Acc Com Active Infowar (turns) 12932 | 24 193 401 920 1538 342 129 . . 66 . . . 203 808 1256 253 356 1303 1730 1560 900 950 Optics 1558 | . . . 920 . . . . . . . . . . . . . . . . . . 638 Sensors 7178 | . . . . . . . . . 66 . . . 203 808 1256 253 356 1226 1584 1426 . . Terrain 618 | 24 193 401 . . . . . . . . . . . . . . . . . . . . Structural 1880 | . . . . 1538 342 . . . . . . . . . . . . . . . . . Seismic 949 | . . . . . . . . . . . . . . . . . . . . . 637 312 Decoding 867 | . . . . . . . . . . . . . . . . . . 867 . . . . Jamming 2418 | . . . . . . . . . . . . . . . . . 4 407 315 664 872 156 ECM 129 | . . . . . . 129 . . . . . . . . . . . . . . . . Robot Analysis Total 4 | . . . . . . . . . . . . . . . . 4 . . . . . . Derelict Logs Recovered 7 | . . 2 2 . . . . . . . . . . 1 2 . . . . . . . Drone Launches 31 | . . . . . . 18 . . . . . . . . 9 . . . . . . 4 Drone Recoveries 13 | . . . . . . 4 . . . . . . . . 7 . . . . . . 2 Decoded 0b10 Intel 24 | . . . . . . . . . . . . . . . . . . 24 . . . . Traps 3 | . . . . . . . . . . . . . . . . . . 3 . . . . Emergency Access 2 | . . . . . . . . . . . . . . . . . . 2 . . . . Items 16 | . . . . . . . . . . . . . . . . . . 16 . . . . Machines 1 | . . . . . . . . . . . . . . . . . . 1 . . . . Patrols 1 | . . . . . . . . . . . . . . . . . . 1 . . . . Guards 1 | . . . . . . . . . . . . . . . . . . 1 . . . . Exploration | -11 -10 -10 -10 -8 -7 -7 -7 -5 -5 -5 -5 -5 -4 -4 -4 -4 -3 -3 -3 -2 -1 -1 ------------- Run | Yrd Mat Min Sub Mat Fac Sto Rec Fac Ext Cet Arc Hub Fac Upp Upp Zhi Pro Res Qua Res Acc Com Turns Passed 24273 | 124 193 908 2669 2313 609 210 427 2211 1200 707 1035 858 419 1076 1256 253 434 1376 2208 1757 900 1130 Spaces Moved 16045 | 61 127 421 1657 1057 694 424 872 1171 608 262 275 362 200 726 841 179 326 1014 1331 1670 1175 592 Core 1 | 1 . . . . . . . . . . . . . . . . . . . . . . Treads 5241 | . . 228 285 497 137 . . 163 69 120 101 360 . . . 74 326 1014 1331 271 43 222 Legs 1314 | . . . . . . . . 484 539 111 . 2 30 . . . . . . . . 148 Wheels 3010 | 60 127 193 1372 560 . . 3 482 . . . . 170 43 . . . . . . . . Hover 1867 | . . . . . . . . 12 . 31 174 . . 683 841 105 . . . . . 21 Flight 4612 | . . . . . 557 424 869 30 . . . . . . . . . . . 1399 1132 201 Fastest Speed 25 | 50 100 100 120 125 26 25 28 62 130 118 118 188 155 104 104 104 104 104 104 49 59 62 Average Speed 103 | 99 100 175 137 143 52 26 29 121 137 133 140 188 169 107 104 104 104 104 108 69 59 85 Slowest Speed 240 | 100 100 240 240 161 161 104 62 198 192 209 188 188 188 170 104 104 104 104 208 129 78 151 Overloaded Moves . | . . . . . . . . . . . . . . . . . . . . . . . Propulsion Burnouts . | . . . . . . . . . . . . . . . . . . . . . . . Robots Hopped 51 | . . . . . . 11 . . . . . . . . . . . . . 31 8 1 Potential Cave-ins 2 | . . . . . . . . . . . . . . . . . . . . . . 2 Cave-ins Triggered . | . . . . . . . . . . . . . . . . . . . . . . . Teleports 3 | . . . . . . . . . . . . . . . . . . . 1 2 . . Exploration Rate (%) 55 | 6 24 82 86 91 23 85 84 30 76 66 76 47 4 67 92 61 48 18 91 45 38 25 Regions Visited 22 Branch Regions 14 Pre-discovered Areas 14 | . . 1 3 . . . 6 . . . . . . . 1 3 . . . . . . Known Exits Taken 14 | . . . . 1 1 1 1 1 . . . 1 1 1 1 1 1 1 1 . 1 . Unknown Exits Taken 8 | 1 1 1 1 . . . . . 1 1 1 . . . . . . . . 1 . . Scrap Searched 14 | . . 1 9 . . . . . . . . . . 2 2 . . . . . . . Spaces Dug 161 | . 7 21 7 20 3 2 4 35 . . . 4 . 3 10 . . 2 23 10 4 6 Terrain Destroyed 560 | . 7 21 26 67 6 6 4 41 12 1 . 45 68 4 15 . 1 3 109 57 48 19 Melee 17 | . . . . . 3 2 4 5 . . . 1 . . 2 . . . . . . . Projectile 301 | . . . 5 12 3 . . 9 12 1 . 16 11 4 13 . 1 3 108 57 27 19 AOE 239 | . 7 21 21 55 . 4 . 25 . . . 28 57 . . . . . . . 21 . Terrain Rammed . | . . . . . . . . . . . . . . . . . . . . . . . Walls Destroyed . | . . . . . . . . . . . . . . . . . . . . . . . Machines Disabled . | . . . . . . . . . . . . . . . . . . . . . . . Actions | -11 -10 -10 -10 -8 -7 -7 -7 -5 -5 -5 -5 -5 -4 -4 -4 -4 -3 -3 -3 -2 -1 -1 --------- Run | Yrd Mat Min Sub Mat Fac Sto Rec Fac Ext Cet Arc Hub Fac Upp Upp Zhi Pro Res Qua Res Acc Com Total 21838 | 90 158 511 1928 1628 891 500 1029 1725 879 594 850 472 256 986 1200 242 386 1296 1807 2058 1306 1046 Wait 3176 | 1 3 39 154 335 5 41 128 243 108 289 490 49 26 190 334 33 10 145 205 171 24 153 Move 15934 | 60 126 420 1656 1056 693 404 871 1170 607 261 274 361 199 725 840 178 325 1013 1330 1615 1160 590 Hop 38 | . . . . . . 8 . . . . . . . . . . . . . 23 6 1 Pick Up 244 | 5 5 2 12 27 5 3 5 30 4 8 12 2 3 8 . 6 3 19 26 19 14 26 Fast Attach 182 | 7 . 1 6 9 11 6 1 26 4 5 5 2 3 8 3 6 3 19 8 26 2 21 Attach 118 | . . 4 4 4 7 2 3 11 3 . . 2 2 2 1 1 2 5 6 19 3 37 Detach 45 | . . . . . 1 5 . 3 . . . . . 1 1 . 1 3 2 6 . 22 Swap 200 | . 4 3 9 23 10 2 1 7 3 1 1 4 3 7 2 . 5 16 30 24 23 22 Drop 335 | . 1 1 15 42 14 10 8 43 5 16 4 4 . 12 2 9 5 38 27 22 14 43 Fire 1227 | 17 19 41 55 123 16 1 . 157 55 14 64 45 20 28 15 6 32 31 170 129 58 131 Melee 114 | . . . 17 9 15 11 12 35 . . . 3 . . 2 3 . 7 . . . . Ram . | . . . . . . . . . . . . . . . . . . . . . . . Kick 1 | . . . . . . . . . 1 . . . . . . . . . . . . . Crush 9 | . . . . . . . . . . . . . . . . . . . 3 4 2 . Escape Stasis . | . . . . . . . . . . . . . . . . . . . . . . . Rewire 90 | . . . . . . . . . 89 . . . . 1 . . . . . . . . Trap 118 | . . . . . 114 . . . . . . . . 4 . . . . . . . . Miscellaneous 7 | . . . . . . 7 . . . . . . . . . . . . . . . . Route ------- -11/Scrapyard -10/Materials -10/Mines (discovered 2 exits: [*Exi] / *Sub) -10/Subcaves (discovered 3 exits: *Mat x2 / *Rec) -8/Materials (discovered 3 exits: *Fac x3) -7/Factory (discovered 3 exits: Fac / *Sto / Low) -7/Storage (discovered 2 exits: *Fac / *Rec) -7/Recycling -5/Factory (discovered 5 exits: Fac / Upp x2 / *Ext x2) -5/Extension (discovered 2 exits: *Fac / *Cet) -5/Cetus (discovered 2 exits: *Fac / [*Arc]) -5/Archives (discovered 3 exits: *Fac / *Hub x2) -5/Hub_04(d) (discovered 4 exits: *Fac x4) -4/Factory -4/Upper Caves -4/Upper Caves (discovered 2 exits: *Res / *Zhi) -4/Zhirov -3/Proximity Caves -3/Research (discovered 3 exits: *Res / *Qua x2) -3/Quarantine -2/Research -1/Access -1/Command (discovered 2 exits: *Sur x2) By MAIN.C's Side History --------- Turn | Location | Event 12 | -11/Scrapyard | Discovered new exit (range 16) 125 | -11/Scrapyard | Entered Materials 174 | -10/Materials | Discovered new exit (range 7) 281 | -10/Materials | Central database locked down 309 | -10/Materials | Build established: Mutant 318 | -10/Materials | Entered Mines 324 | -10/Mines | Discovered new exit (range 5) 371 | -10/Mines | Deemed a non-threat by the Exiles lab entrance 391 | -10/Mines | Learned Materials garrison access intel 434 | -10/Mines | Learned location of Zion (-7) 448 | -10/Mines | Received a Rocket Launcher from a helpful Derelict 582 | -10/Mines | Lost 3 parts (1p1n1w) 874 | -10/Mines | Build established: Scavenger-Mutant 1103 | -10/Mines | Assisted by bots powering up and referring to "LRC-V3" 1186 | -10/Mines | Discovered new exit (range 7) 1226 | -10/Mines | Entered Subcaves 1226 | -10/Subcaves | Accompanied by 3 allies 1664 | -10/Subcaves | Shifting Twisted Machinery released Battle Rifle 1874 | -10/Subcaves | Core integrity fell below 50% 1913 | -10/Subcaves | Visited 4L-MR0's lab 1928 | -10/Subcaves | Found Meta Core 2071 | -10/Subcaves | Build established: Mutant 2306 | -10/Subcaves | Shifting Twisted Machinery released Battle Cannon 2669 | -10/Subcaves | Discovered new exit (range 12) 2674 | -10/Subcaves | Met a Zionite searching for "candidates" 2695 | -10/Subcaves | Shifting Twisted Machinery released Sub. Optics 2748 | -10/Subcaves | Shifting Twisted Machinery released Sub. Laser 3579 | -10/Subcaves | Discovered new exit (range 12) 3688 | -10/Subcaves | Discovered new exit (range 5) 3784 | -10/Subcaves | Core integrity fell below 20% 3895 | -10/Subcaves | Entered Materials 3895 | -8/Materials | Evolved 4 slots: Propulsion x2, Utility x2 3896 | -8/Materials | Loaded intel: 1 garrison access location 4201 | -8/Materials | Garrison activated, responded to threat 4239 | -8/Materials | Build established: Scavenger-Mutant 4900 | -8/Materials | Discovered new exit (range 3) 5094 | -8/Materials | Build established: Mutant 5495 | -8/Materials | First assault squad dispatched 5754 | -8/Materials | Discovered new exit (range 11) 5987 | -8/Materials | Learned location of 1 exit from Recycling 6073 | -8/Materials | Learned 2 Lower Caves zone layouts 6100 | -8/Materials | Learned Factory trap positions 6124 | -8/Materials | Learned Factory machine intel 6143 | -8/Materials | Learned Factory terminal intel 6173 | -8/Materials | Identified exit to Factory 6208 | -8/Materials | Entered Factory 6208 | -7/Factory | Evolved 2 slots: Propulsion x2 6209 | -7/Factory | Identified exit to Factory 6209 | -7/Factory | Identified exit to Storage 6209 | -7/Factory | Identified exit to Lower Caves 6210 | -7/Factory | Loaded intel: 113 trap records 6211 | -7/Factory | Loaded intel: 263 machine locations 6212 | -7/Factory | Loaded intel: 26 terminal locations 6635 | -7/Factory | Attached Meta Core, gained temporary slots: Propulsion, Utility, Weapon 6817 | -7/Factory | Entered Storage 6874 | -7/Storage | Discovered exit to Factory (range 14) 6921 | -7/Storage | Identified exit to Recycling 6940 | -7/Storage | Found Prototype Launcher 6940 | -7/Storage | Identified Rocket Array 6973 | -7/Storage | Build established: Hacker-Sprinter 6984 | -7/Storage | Used back door to open Recycling access 7013 | -7/Storage | Lost 8 allies 7019 | -7/Storage | Learned Factory machine intel 7027 | -7/Storage | Entered Recycling 7028 | -7/Recycling | Identified exit to Factory 7054 | -7/Recycling | Lost 5 allies 7221 | -7/Recycling | Entered Scraplab 7228 | -7/Recycling | Found Prototype Device 7228 | -7/Recycling | Identified Scrap Engine 7454 | -7/Recycling | Entered Factory 7454 | -5/Factory | Evolved 4 slots: Power x1, Utility x2, Weapon x1 7455 | -5/Factory | Loaded intel: 275 machine locations 7518 | -5/Factory | Fabricated Hacking Suite? 7724 | -5/Factory | Lost 5 parts (1p1n1u2w) 7745 | -5/Factory | Build established: Mutant 7754 | -5/Factory | Search patrols dispatched 7792 | -5/Factory | Fabricated Flak Cannon (x2) 8317 | -5/Factory | Found Hvy. Reflective Plating 8343 | -5/Factory | Found Hvy. Reflective Plating 8441 | -5/Factory | Found Hvy. Reflective Plating 8588 | -5/Factory | Build established: Scavenger-Mutant 8748 | -5/Factory | Discovered new exit (range 13) 8865 | -5/Factory | System corruption reached 10% 9033 | -5/Factory | Garrison activated, responded to threat 9146 | -5/Factory | Identified exit to Upper Caves 9146 | -5/Factory | Identified exit to Extension 9256 | -5/Factory | Fabricated Enh. Nova Cannon (x2) 9327 | -5/Factory | Fabricated Flak Cannon? 9407 | -5/Factory | Core integrity fell below 50% 9465 | -5/Factory | Build established: Hacker-Tank 9603 | -5/Factory | Garrison activated, responded to threat 9665 | -5/Factory | Entered Extension 9809 | -5/Extension | Destroyed 7 combat bots 10050 | -5/Extension | Rescued a captive Derelict 10052 | -5/Extension | Rescued a captive Derelict 10243 | -5/Extension | Spotted B-75 Beast 10264 | -5/Extension | Spotted B-75 Beast 10269 | -5/Extension | Build established: Hacker-Mutant 10282 | -5/Extension | Destroyed B-75 Beast 10296 | -5/Extension | Destroyed B-75 Beast 10322 | -5/Extension | Lost 5 allies 10552 | -5/Extension | Rescued a captive Derelict 10553 | -5/Extension | Rescued a captive Derelict 10693 | -5/Extension | Rescued A7 10744 | -5/Extension | Energy Cycler disabled 10829 | -5/Extension | Discovered new exit (range 10) 10830 | -5/Extension | Discovered new exit (range 6) 10865 | -5/Extension | Entered Cetus 10865 | -5/Cetus | Accompanied by 9 allies (A7) 10870 | -5/Cetus | Acquired a Cetus Manufacturing Module code from A7 10880 | -5/Cetus | Build established: Commander-Tank 10888 | -5/Cetus | Spotted Cetus Guard 10888 | -5/Cetus | Spotted Cetus Guard 10888 | -5/Cetus | Destroyed Cetus Guard 10892 | -5/Cetus | Spotted Cetus Guard 10896 | -5/Cetus | Spotted Cetus Guard 10909 | -5/Cetus | Destroyed Cetus Guard 10915 | -5/Cetus | Destroyed Cetus Guard 10922 | -5/Cetus | Allies destroyed Cetus Guard 10942 | -5/Cetus | Lost 3 allies 11001 | -5/Cetus | Started Cetus Manufacturing Module 11010 | -5/Cetus | Escorted A7 to Cetus Mainframe 11026 | -5/Cetus | Manufactured an Enhanced Grunt 11029 | -5/Cetus | Discovered new exit (range 15) 11051 | -5/Cetus | Manufactured an Enhanced Grunt 11076 | -5/Cetus | Manufactured an Enhanced Grunt 11101 | -5/Cetus | Manufactured an Enhanced Grunt 11126 | -5/Cetus | Manufactured an Enhanced Grunt 11134 | -5/Cetus | Spotted Cetus Guard 11137 | -5/Cetus | Spotted Cetus Guard 11140 | -5/Cetus | Spotted Cetus Guard 11142 | -5/Cetus | Spotted Cetus Guard 11150 | -5/Cetus | Allies destroyed Cetus Guard 11151 | -5/Cetus | Allies destroyed Cetus Guard 11156 | -5/Cetus | Destroyed Cetus Guard 11164 | -5/Cetus | Allies destroyed Cetus Guard 11171 | -5/Cetus | Discovered new exit (range 16) 11181 | -5/Cetus | Met Revision 17 11226 | -5/Cetus | Build established: Commander-Mutant 11572 | -5/Cetus | Entered Archives 11572 | -5/Archives | Accompanied by 8 allies (A7) 11577 | -5/Archives | Received a hacking code to weaken MAIN.C 11628 | -5/Archives | Discovered new exit (range 16) 11641 | -5/Archives | Discovered new exit (range 15) 11656 | -5/Archives | Build established: Commander-Construct 11763 | -5/Archives | Discovered new exit (range 15) 12607 | -5/Archives | Entered Hub_04(d) 12607 | -5/Hub_04(d) | Accompanied by 5 allies 12657 | -5/Hub_04(d) | Spotted B-75 Beast 12704 | -5/Hub_04(d) | Discovered new exit (range 17) 12705 | -5/Hub_04(d) | Identified exit to Factory 12935 | -5/Hub_04(d) | Garrison activated, responded to threat 13026 | -5/Hub_04(d) | Build established: Hacker-Construct 13207 | -5/Hub_04(d) | First assault squad dispatched 13306 | -5/Hub_04(d) | Network Hub disabled 13311 | -5/Hub_04(d) | Network Hub disabled 13315 | -5/Hub_04(d) | Destroyed 8 combat bots 13364 | -5/Hub_04(d) | Core integrity fell below 20% 13399 | -5/Hub_04(d) | Spotted Lightning 13400 | -5/Hub_04(d) | Spotted Lightning 13400 | -5/Hub_04(d) | Spotted Lightning 13465 | -5/Hub_04(d) | Entered Factory 13465 | -4/Factory | Evolved 2 slots: Propulsion x1, Utility x1 13507 | -4/Factory | Discovered new exit (range 15) 13525 | -4/Factory | Garrison activated, responded to threat 13586 | -4/Factory | Identified exit to Upper Caves 13715 | -4/Factory | First assault squad dispatched 13884 | -4/Factory | Entered Upper Caves 14076 | -4/Upper Caves | Build established: Construct 14602 | -4/Upper Caves | Learned Research stockpile data 14941 | -4/Upper Caves | Discovered new exit (range 5) 14945 | -4/Upper Caves | Identified exit to Upper Caves 14960 | -4/Upper Caves | Entered another Upper Caves area 14977 | -4/Upper Caves | Discovered new exit (range 22) 15543 | -4/Upper Caves | Learned location of Testing (-2) 16036 | -4/Upper Caves | Attracted the attention of an 0b10 checkpoint 16115 | -4/Upper Caves | Discovered new exit (range 14) 16128 | -4/Upper Caves | Identified exit to Zhirov 16216 | -4/Upper Caves | Entered Zhirov 16216 | -4/Zhirov | Discovered new exit (range 3) 16220 | -4/Zhirov | Identified exit to Proximity Caves 16236 | -4/Zhirov | Met Zhirov 16273 | -4/Zhirov | Learned location of Quarantine (-3) 16273 | -4/Zhirov | Learned location of Command (-1) 16282 | -4/Zhirov | Zhirov requested help retrieving the SGEMP Prototype 16300 | -4/Zhirov | Found Alien Artifact 16300 | -4/Zhirov | Identified Integrated Reactor 16300 | -4/Zhirov | Installed Integrated Reactor, increased core energy generation (+10) 16427 | -4/Zhirov | Found Alien Artifact 16469 | -4/Zhirov | Entered Proximity Caves 16531 | -3/Proximity Caves | Lost 3 parts (2u1w) 16543 | -3/Proximity Caves | Spotted B-86 Titan 16568 | -3/Proximity Caves | Acquired the password to a Derelict Tinkerer's latest research 16577 | -3/Proximity Caves | Found Prototype Special Weapon 16577 | -3/Proximity Caves | Identified Molecular Deconstructor 16626 | -3/Proximity Caves | Attracted the attention of an 0b10 checkpoint 16637 | -3/Proximity Caves | Spotter reported a threat 16888 | -3/Proximity Caves | Discovered new exit (range 9) 16896 | -3/Proximity Caves | Identified exit to Research 16903 | -3/Proximity Caves | Entered Research 16903 | -3/Research | Evolved 2 slots: Utility x1, Weapon x1 17103 | -3/Research | Revision forces began assault on 0b10 17121 | -3/Research | Met up with Revision 17++ 17169 | -3/Research | Spotted B-86 Titan 17398 | -3/Research | Fabricated Cmb. Linear Gravjet (x2) 17439 | -3/Research | Identified exit to Quarantine 17486 | -3/Research | Spotted B-86 Titan 17498 | -3/Research | Fabricated Assault Drone Bay? 17588 | -3/Research | Lost 3 allies 17603 | -3/Research | Research terminal network offline 17683 | -3/Research | Spotted B-90 Cyclops 17744 | -3/Research | Spotted Striker 17753 | -3/Research | Destroyed Striker 17759 | -3/Research | Spotted Executioner 17762 | -3/Research | Attached CPS modules to Executioner. 17763 | -3/Research | Destroyed Executioner 17782 | -3/Research | Found Prototype Device 17782 | -3/Research | Identified Adv. Kinecellerator 17788 | -3/Research | Found Prototype Processor 17788 | -3/Research | Identified Exp. Targeting Computer 17803 | -3/Research | Found Prototype Processor 17803 | -3/Research | Identified Exp. Core Analyzer 17810 | -3/Research | Found Exp. Core Analyzer 17859 | -3/Research | Identified Transdimensional Reconstructor 17987 | -3/Research | Fabricated CPS Tube? 18011 | -3/Research | Build established: Scavenger-Construct 18042 | -3/Research | Discovered new exit (range 3) 18044 | -3/Research | Identified exit to Research 18057 | -3/Research | Found Prototype Device 18057 | -3/Research | Identified Adv. EM Shield 18270 | -3/Research | Murdered Revision 17++ 18279 | -3/Research | Entered Quarantine 18393 | -3/Quarantine | Repaired Broken Imp. Weapon Cycler 18417 | -3/Quarantine | Found Alien Energy Cannon 18573 | -3/Quarantine | Found Alien Artifact 18646 | -3/Quarantine | Found Gamma Bomb Array 18711 | -3/Quarantine | Found Alien Artifact 18924 | -3/Quarantine | Scanned by Researcher 19178 | -3/Quarantine | Garrison activated, responded to threat 19206 | -3/Quarantine | Lost 3 parts (2u1w) 19210 | -3/Quarantine | Destroyed 7 combat bots 19417 | -3/Quarantine | Found Alien Artifact 19462 | -3/Quarantine | Identified Core Reset Matrix 19499 | -3/Quarantine | Identified Hpw. Transdimensional Reconstructor 19499 | -3/Quarantine | Identified Subatomic Replicator 19529 | -3/Quarantine | First assault squad dispatched 19714 | -3/Quarantine | Found Alien Artifact 19714 | -3/Quarantine | Identified Phase Redirector 19919 | -3/Quarantine | Found Alien Artifact 19929 | -3/Quarantine | Found Transdimensional Reconstructor 19931 | -3/Quarantine | Found Transdimensional Reconstructor 20007 | -3/Quarantine | System corruption reached 10% 20028 | -3/Quarantine | Found Corrupted Prototype Device 20028 | -3/Quarantine | Identified Exp. Focal Shield 20050 | -3/Quarantine | Warped through subspace 20141 | -3/Quarantine | Identified Core Cannon 20318 | -3/Quarantine | Core integrity fell below 50% 20327 | -3/Quarantine | Build established: Construct 20379 | -3/Quarantine | Found Sigix Corpse 20388 | -3/Quarantine | Found Sigix Corpse 20474 | -3/Quarantine | Discovered exit to Research (range 13) 20487 | -3/Quarantine | Entered Research 20487 | -2/Research | Evolved 2 slots: Utility x2 20737 | -2/Research | First assault squad dispatched 20850 | -2/Research | Unchained authorized (DW-4LL) 20934 | -2/Research | Build established: Scavenger-Construct 21005 | -2/Research | Spotted B-90 Cyclops 21042 | -2/Research | DW-4LL burst out of a wall 21064 | -2/Research | Warped through subspace 21114 | -2/Research | DW-4LL burst out of a wall 21114 | -2/Research | Destroyed DW-4LL 21125 | -2/Research | Found Prototype Treads 21137 | -2/Research | Found Prototype Device 21145 | -2/Research | Garrison activated, responded to threat 21161 | -2/Research | System corruption reached 10% 21233 | -2/Research | Destroyed 9 combat bots 21233 | -2/Research | Lost 4 parts (3u1w) 21525 | -2/Research | Spotted B-90 Cyclops 21536 | -2/Research | Warped through subspace 21711 | -2/Research | Spotted B-90 Cyclops 21819 | -2/Research | Identified Exp. Weapon Cycler 21832 | -2/Research | Used Subatomic Replicator to replicate Molecular Deconstructor 21839 | -2/Research | Core integrity fell below 50% 22119 | -2/Research | Build established: Scavenger-Gunner 22232 | -2/Research | Discovered new exit (range 13) 22244 | -2/Research | Entered Access 22244 | -1/Access | Evolved 2 slots: Power x1, Utility x1 22528 | -1/Access | Found Gamma Bomb Array+ 22530 | -1/Access | Found Gamma Bomb Array+ 22531 | -1/Access | Found Gamma Bomb Array+ 22680 | -1/Access | Identified exit to Command 22744 | -1/Access | First assault squad dispatched 23020 | -1/Access | Found Prototype Device 23020 | -1/Access | Identified Exp. EM Disruption Field 23144 | -1/Access | Entered Command 23148 | -1/Command | Lost 4 parts (1n3u) 23216 | -1/Command | System corruption reached 10% 23337 | -1/Command | Lost 4 parts (1p2u1w) 23394 | -1/Command | First assault squad dispatched 23442 | -1/Command | Spotted Combat Programmer 23499 | -1/Command | Met MAIN.C 23508 | -1/Command | 0b10 Conduit disabled 23549 | -1/Command | Lost 3 parts (2p1u) 23549 | -1/Command | Attached CPS modules to MAIN.C. 23560 | -1/Command | Destroyed MAIN.C Shell 23561 | -1/Command | Surrendered to MAIN.C 23561 | -1/Command | Loaded intel: 61 machine locations 23561 | -1/Command | Loaded intel: 94 trap records 23561 | -1/Command | Identified exit to Surface 23561 | -1/Command | Discovered exit to Surface (range 48) 23561 | -1/Command | Discovered exit to Surface (range 89) 23567 | -1/Command | Found Prototype Reactor 23567 | -1/Command | Identified Singularity Reactor 23570 | -1/Command | Found Prototype Protection 23570 | -1/Command | Identified Centrium Heavy Armor Plating 23581 | -1/Command | Found Centrium Heavy Armor Plating 23634 | -1/Command | Found Prototype Ballistic Cannon 23634 | -1/Command | Identified Omega Cannon 23641 | -1/Command | Found Prototype Device 23641 | -1/Command | Identified Exp. System Purifier 23644 | -1/Command | Found Exp. Weapon Cycler 23648 | -1/Command | Found Prototype Reactor 23653 | -1/Command | Found Prototype Protection 23653 | -1/Command | Identified Hvy. Regenerative Plating 23660 | -1/Command | Found Exp. Targeting Computer 23665 | -1/Command | Found Prototype Device 23665 | -1/Command | Identified Exp. Hardlight Generator 23688 | -1/Command | MAIN.C activated Command garrisons 23728 | -1/Command | Unknown forces attacked Command 23728 | -1/Command | Spotted EQ-001 23739 | -1/Command | Spotted EQ-009 23740 | -1/Command | Spotted EQ-000 23741 | -1/Command | Spotted EQ-005 23798 | -1/Command | Spotted EQ-002 23804 | -1/Command | Spotted EQ-012 23811 | -1/Command | Spotted EQ-020 23811 | -1/Command | Spotted EQ-019 23811 | -1/Command | Spotted EQ-021 23811 | -1/Command | Spotted EQ-018 23813 | -1/Command | Destroyed EQ-002 23817 | -1/Command | Core integrity fell below 50% 23826 | -1/Command | Destroyed EQ-018 23833 | -1/Command | Spotted EQ-031 23843 | -1/Command | Destroyed EQ-009 23858 | -1/Command | Spotted EQ-028 23863 | -1/Command | Spotted EQ-015 23863 | -1/Command | Spotted EQ-010 23869 | -1/Command | Spotted EQ-017 23892 | -1/Command | Destroyed EQ-028 23902 | -1/Command | Lost 21 allies 23918 | -1/Command | Spotted EQ-056 23918 | -1/Command | Spotted EQ-038 23918 | -1/Command | Spotted EQ-041 23918 | -1/Command | Spotted EQ-039 23918 | -1/Command | Spotted EQ-040 23922 | -1/Command | Destroyed EQ-039 23925 | -1/Command | Destroyed EQ-038 23948 | -1/Command | Found Exp. Core Analyzer 23956 | -1/Command | Lost 5 allies 24023 | -1/Command | Spotted EQ-062 24023 | -1/Command | Spotted EQ-068 24023 | -1/Command | Spotted EQ-063 24023 | -1/Command | Spotted EQ-061 24023 | -1/Command | Spotted EQ-060 24097 | -1/Command | Spotted EQ-074 24102 | -1/Command | Spotted EQ-079 24108 | -1/Command | Spotted EQ-083 24109 | -1/Command | Destroyed EQ-074 24116 | -1/Command | Destroyed EQ-079 24123 | -1/Command | Destroyed EQ-083 24124 | -1/Command | Spotted EQ-099 24132 | -1/Command | Spotted EQ-085 24135 | -1/Command | Core integrity fell below 20% 24138 | -1/Command | Spotted EQ-084 24154 | -1/Command | Destroyed EQ-085 24176 | -1/Command | Spotted EQ-098 24183 | -1/Command | Lost 7 allies 24186 | -1/Command | Destroyed Executioner 24192 | -1/Command | Spotted EQ-097 24193 | -1/Command | Destroyed EQ-097 24199 | -1/Command | Spotted EQ-090 24241 | -1/Command | Spotted EQ-126 24241 | -1/Command | Spotted EQ-110 24241 | -1/Command | Spotted EQ-111 24257 | -1/Command | Spotted EQ-112 24261 | -1/Command | Spotted EQ-113 24267 | -1/Command | Spotted EQ-115 24269 | -1/Command | Spotted EQ-135 24269 | -1/Command | Spotted EQ-132 24271 | -1/Command | Destroyed EQ-112 24272 | -1/Command | Attackers retreated from Command 24274 | *** | Fortifying 0b10! Last Messages --------------- 24266_ Ended siege mode. 24266_ EQ-113 destroyed. 24267_ P-80 Master resets G-73 Enforcer, system corruption cleaned. 24267_ G-73 Enforcer destroyed. 24267_ Slug penetrates L-61 Swordsman. 24271_ EQ-112 suffers critical hit (Meltdown). 24271_ Lgt. Quantum Reactor melted. 24271_ Adv. Weapon Cycler melted. 24271_ Adv. Dynamic Insulation System melted. 24272_ ALERT: Enemy forces retreating. 24274_ The unstable cave ceiling collapses. MAIN.C: I admit your assistance was pivotal here. It looks like I was right to trust you. This attack appears to have been designed to merely test our defenses, although it was nearly effective enough to force me to take the conflict to the next level. Investigating the origins of these bots should be one of our highest priorities... [Achievement: Force of Scrap] [Achievement: Stronghold] Map ----- +----------------------------------------------------+ | # # #?????????????????????????????????#?#? | | # # #?????????????????????????????????#?#? | | ### # #?????????????????????????????????#?#? | | ??# # #?????????????????????????????????#?#? | | ??# ##! #?????????????????????????????????#?#? | | ??# ## #?????????????????????????????????#?#? | | ??# ## #??###########################????#?#? | | ??# ## "" #??#?????????????????????????#????#?#? | | ??# ## "" #??#?#######################?#????#?#? | | ### ## "T #??#?#""""""" " ########### | | ## "" #??#?#"" #?#???????? | | ! ## "" #??#?#""""" *Y########### | | !=% ## #??#?#"" " " % [[*!//!% | | !=!]## #??#?#" " !=!=!/!!= | | %%%[ ########??#?#"" [= =[]=E!%%* | | ==]! ??#####?#?#"" " % %* [[]|!########### | | ! ### #?#?# % = =!! %!!%!#?#???????? | | %!% = / #?#?# =!![ !=!!!########### | | %%= # #?#?# * = ! *!%*#?#????#?#? | | # % #?#?# =!% % [!=#?#????#?#? | | % ! #?#?# ] [!%#?#????#?#? | | % # ]#?#?#* M g % %!% #?#????#?#? | | ! # *[!?#?#%%p !% Y = #?#????#?#? | | != %#!!=####=%g #?#????#?#? | | # % !%%[![==%%%[ % ] #?#????#?#? | | [|%!!!=!*l[[=[!== @ % % #?#????#?#? | | = =% =[ =[=%![!%!!= #?#????#?#? | | != ! # %[####*[!* *%!#?#????#?#? | | !*%[* % ?#?#= "" % %#?#????#?#? | | % = #?#?# ! " %%%#?#????#?#? | | #?#?#######################?#????#?#? | | " #?#?????????????????????????#????#?#? | | # #?###########################????#?#? | | + #????????????????????????????????#?#? | | #+####+## #????????????????????????????????#?#? | | # !#????????????????????????????????#?#? | | # #????????????????????????????????#?#? | | ##+###????????????????????????????????#?#? | | ] ## #??????????????????????????????????#?#? | | ## #??????????????????????????????????#?#? | | ## #??????????????????????????????????#?#? | | "" ## #??????????????????????????????????#?#? | | """"## #??????????????????????????????????#?#? | | """"## #??????????????????????????????????#?#? | | "" ## #??????????????????????????????????#?#? | | + #??????????????????????????????????#?#? | | ####??????????????????????????????????#?#? | | #########?????????????????????????????????????#?#? | | ??????????????????????????????????????????????#?#? | | ??????????????????????????????????????????????#?#? | +----------------------------------------------------+ Best States ------------- Heat Dissipation 270 Coolant Potential 50 Energy Generation 85 Energy Capacity 1700 Matter Stores 300 Matter Capacity 600 Sight Range 23 Robot Scan Range 16 Terrain Scan Range 16 Terrain Scan Density 10 ECM Strength 1 Jamming Range 16 Corruption Block 9 Armor Coverage 1200 Resistance: KI 30 Resistance: TH 25 Resistance: EM 50 Core Shielding 40 Utility Shielding 66 Weapon Cycling 30 Evasion (%) 65 Targeting Accuracy 12 Core Analysis 12 Recoil Reduction 7 Particle Charging 30 Kinecelleration 50 Offensive Hacking 34 Defensive Hacking 10 Authchip Count 3 Trap Extractor Capacity 4 Item Schematics ----------------- Huge Storage Unit | -10/Materials | Hacked Mak. Spear | -8/Materials | Scanalyzed System Shield | -8/Materials | Scanalyzed Ripper | -8/Materials | Scanalyzed Flight Unit | -8/Materials | Scanalyzed Hacking Suite | -8/Materials | Hacked Transport Network Coupler | -8/Materials | Hacked Datajack | -8/Materials | Hacked Hyp. Gauss Rifle | -7/Storage | Hacked Flak Cannon | -7/Storage | Hacked Gatling Laser | -7/Recycling | Hacked Cld. Ion Engine | -7/Recycling | Hacked Hyb. Deuterium Engine | -7/Recycling | Hacked Proton Cannon | -7/Recycling | Hacked Imp. Field Recycling Unit | -7/Recycling | Hacked Nova Cannon | -5/Factory | Hacked Imp. Thunder Leg | -5/Extension | Hacked Adv. Force Field | -5/Extension | Hacked Adv. Weapon Cycler | -5/Extension | Hacked Assault Drone Bay | -4/Zhirov | Free Exp. Optical Array | -4/Zhirov | Free Exp. Heat Sink | -4/Zhirov | Free Imp. Arc Thrower | -4/Zhirov | Free CPS Tube | -3/Research | Scanalyzed Com. Particle Reactor | -3/Quarantine | Archive Helical Railgun | -3/Quarantine | Archive Prc. Energy Filter | -3/Quarantine | Archive Enh. Coil Gun | -3/Quarantine | Archive Tiamat Missile Launcher | -3/Quarantine | Archive Enh. Biometal Leg | -3/Quarantine | Archive Cld. Antigrav System | -3/Quarantine | Archive Enh. Flexi-carbon Leg | -3/Quarantine | Archive Exp. System Shield | -3/Quarantine | Archive Exp. Matter Compressor | -3/Quarantine | Archive Exp. Terrain Scan Processor | -3/Quarantine | Archive Diametric Drive | -3/Quarantine | Archive Centrium Heavy Treads | -3/Quarantine | Archive Lgt. Antimatter Cannon | -3/Quarantine | Archive Lrn. Phase Cannon | -3/Quarantine | Archive Nanosword | -3/Quarantine | Archive Tactical Quantum Warhead | -3/Quarantine | Archive Kinetic Spear | -3/Quarantine | Archive Robot Schematics ------------------ A-02 Transporter | -3/Quarantine | Archive R-10 Processor | -3/Quarantine | Archive G-67 Veteran | -3/Quarantine | Archive S-43 Plague | -3/Quarantine | Archive H-77 Assassin | -3/Quarantine | Archive A-15 Conveyor | -3/Quarantine | Archive Fabricated ------------ Hacking Suite | x1 | -5/Factory | Authchip Flak Cannon | x2 | -5/Factory | Authchip Enh. Nova Cannon | x2 | -5/Factory | Preloaded Flak Cannon | x2 | -5/Factory Cmb. Linear Gravjet | x2 | -3/Research | Preloaded Assault Drone Bay | x1 | -3/Research CPS Tube | x1 | -3/Research Repaired ---------- Imp. Weapon Cycler | 60% | -3/Quarantine | Broken Studied --------- Xenon Bombardment Thruster | -7/Factory | Hacked Gamma Bomb Array | -3/Quarantine | Hacked Quantum Reactor | -1/Access | Hacked Alien Tech Used ----------------- Integrated Reactor Phase Redirector Transdimensional Reconstructor Core Cannon High-powered Transdimensional Reconstructor Subatomic Replicator Achievements -------------- Force of Scrap Not So Scrappy Prodigal Son Scrappetite Stronghold Challenges ------------ None Game ------ Seed ThrusterSubdwellerMembrane Manual? 0 Play Time 07:50:50 Cumulative 1053.8 hours Start 2025.11.08 @ 09:43:04 End 2025.11.09 @ 20:28:48 Sessions 5 Manual Loads 0 Difficulty Rogue Special Mode None Game No. 380 Rogue 375 Adventurer 4 Explorer 1 Win Type 8 Total 23 Types 13/3/1/2/0/1/0/0/2/1 Lore% 96 Gallery% 94 Achievement% 80 Wizard Run 0 Options --------- Layout 0 ASCII 0 Keyboard 0 Movement Numpad Keybinds 0 Fullscreen 2 Font 18/SmallcapsGlow Map View 76x50 Zoom Use 0% Tactical HUD 1 Map Filters NONE Filters NONE Steam 1 RUN: d82395b0-6c64-4407-a448-1faddba707a6